bitfinex/quotes_ETHUSD_20260207
["timestamp","ask_amount","ask_price","bid_price","bid_amount"]
[1770442086013,0.2335703,2096.0,2094.8,0.9383199]
[1770442086327,0.05026328,2096.4,2094.8,0.9383199]
[1770442086328,4.76965869,2096.6,2095.0,4.797001]
[1770442086494,4.76965869,2096.6,2094.8,11.35090431]
[1770442086495,1.03259462,2096.4,2094.8,3.183092]
[1770442086806,1.03259462,2096.4,2094.4,4.87635331]
[1770442086807,0.05026328,2095.3,2094.1,1.19379321]
[1770442086976,0.69980427,2095.3,2094.1,1.19379321]
[1770442087182,0.05026328,2095.1,2094.1,1.19379321]
[1770442087407,0.05026328,2095.1,2093.2,11.24850431]
[1770442087408,0.2335703,2095.0,2093.2,11.24850431]
[1770442087610,0.98233134,2094.9,2093.8,1.19396689]
[1770442087817,0.98233134,2095.3,2094.1,1.19382439]
[1770442088019,0.05026328,2095.0,2093.5,0.97943857]
[1770442088223,0.2335703,2095.0,2094.1,1.19382391]
[1770442088419,0.05026328,2094.8,2093.9,1.19390736]
[1770442088608,1.21590164,2095.0,2094.0,1.19388065]
[1770442088936,1.21590164,2095.0,2093.8,0.001]
[1770442088937,0.05026328,2094.8,2093.8,0.001]
[1770442089341,1.19314656,2095.3,2093.8,0.97000041]
[1770442089807,0.69098345,2095.2,2093.8,0.97000041]
[1770442090143,0.74124673,2095.2,2093.8,0.97000041]
[1770442090344,0.69098345,2095.2,2093.8,0.97000041]
[1770442090637,6.10793669,2096.7,2094.1,0.96900041]
[1770442090638,2.13720071,2095.5,2094.1,0.96900041]
[1770442090809,1.19314656,2095.3,2094.2,1.19377327]
[1770442091003,1.19298747,2095.6,2094.3,0.96900041]
[1770442091231,2.18729559,2095.8,2094.3,0.96900041]
[1770442091536,1.64001283,2095.7,2094.3,0.96900041]
[1770442091711,0.05026328,2095.5,2094.3,0.96900041]
[1770442091917,0.9441567,2095.6,2094.2,1.19377327]
[1770442092128,0.05026328,2095.5,2094.2,1.19377327]
[1770442092334,0.9441567,2095.5,2094.2,1.19377327]
[1770442092531,1.64001283,2095.7,2094.3,0.59688664]
[1770442092834,1.19331742,2095.0,2093.9,4.77572798]
[1770442093045,0.05026328,2095.1,2093.8,0.001]
[1770442093229,11.24850431,2094.6,2093.5,0.001]
[1770442093442,0.9441567,2094.4,2093.5,0.001]
[1770442093809,0.99441998,2094.4,2093.5,0.001]
[1770442094018,0.05026328,2094.0,2093.5,0.001]
[1770442094442,0.99441998,2094.9,2093.5,0.001]
[1770442094608,0.99441998,2094.9,2093.5,1.19513176]
[1770442094609,1.177727,2094.8,2093.5,1.19513176]
[1770442094808,1.177727,2094.8,2093.6,0.59720433]
[1770442094809,0.05026328,2094.3,2093.6,0.59720433]
[1770442095111,0.99441998,2094.3,2093.5,0.001]
[1770442096150,0.05026328,2094.0,2093.5,0.001]
[1770442096341,0.2335703,2093.8,2092.9,0.1309746]
[1770442096641,0.28383358,2094.4,2093.2,4.77733967]
[1770442096807,0.05026328,2094.1,2093.3,0.47773397]
[1770442097013,1.24414924,2094.1,2093.1,1.19439393]
[1770442097234,1.24414924,2094.1,2092.9,0.1309746]
[1770442097422,1.24414924,2094.1,2093.0,1.19445587]
[1770442097742,0.2335703,2094.5,2093.3,1.19425511]
[1770442097943,0.05026328,2094.3,2093.3,1.19425511]
[1770442098130,0.05026328,2094.3,2093.4,0.59716156]
[1770442098328,0.9441567,2094.6,2093.4,0.59716156]
[1770442098532,0.05026328,2094.7,2093.4,0.59716156]
[1770442098836,2.18783427,2094.9,2093.5,0.96900041]
[1770442099147,2.18783427,2094.9,2093.6,1.19411539]
[1770442099351,3.36131721,2094.9,2093.7,0.69395774]
[1770442099512,0.05026328,2094.6,2093.7,0.69395774]
[1770442099841,0.9441567,2094.8,2093.6,1.19411539]
[1770442100231,0.9441567,2095.2,2093.7,0.96900041]
[1770442100547,0.05026328,2093.8,2092.9,0.0309746]
[1770442100852,0.9441567,2093.7,2092.9,0.0309746]
[1770442101017,0.9441567,2093.7,2092.7,0.001]
[1770442101018,2.18859241,2093.5,2092.7,0.001]
[1770442101211,0.9441567,2093.9,2092.9,1.19451074]
[1770442101417,0.99441998,2093.8,2092.7,0.001]
[1770442101726,0.99441998,2093.7,2092.7,0.001]
[1770442101914,0.99441998,2093.7,2093.4,0.001]
[1770442102111,0.99441998,2093.7,2092.7,0.001]
[1770442102311,0.2335703,2093.3,2092.1,1.19495798]
[1770442102536,0.05026328,2093.3,2092.5,0.001]
[1770442102750,0.05026328,2093.5,2092.5,0.001]
[1770442102952,0.05026328,2093.2,2092.5,0.001]
[1770442103419,0.05026328,2093.1,2091.9,1.19508206]
[1770442103671,0.2335703,2093.0,2092.0,0.59754253]
[1770442103849,0.2335703,2093.0,2090.9,4.78262682]
[1770442103850,0.05026328,2092.8,2091.8,1.19509775]
[1770442104035,0.05026328,2092.5,2091.8,1.19509775]
[1770442104242,0.99441998,2093.3,2091.9,1.19505963]
[1770442104420,0.05026328,2093.0,2091.9,1.19505963]
[1770442104621,0.05026328,2093.3,2092.0,0.96900041]
[1770442104942,1.24440088,2093.6,2092.3,1.19485733]
[1770442105140,1.94088578,2093.6,2092.4,0.59742867]
[1770442105356,0.74674818,2093.6,2092.4,0.59742867]
[1770442105524,1.19399359,2093.9,2092.5,0.96900041]
[1770442105722,1.19399359,2093.9,2092.6,0.96900041]
[1770442105923,0.05026328,2093.9,2092.6,0.96900041]
[1770442106751,0.05026328,2093.9,2092.4,0.59742867]
[1770442106949,0.05026328,2093.6,2092.5,1.19474313]
[1770442107161,1.24438442,2093.6,2092.6,0.65711443]
[1770442107533,0.05026328,2093.3,2092.6,0.65711443]
[1770442107734,1.24438442,2093.6,2092.3,1.19485022]
[1770442107735,0.05026328,2093.2,2092.3,1.19485022]
[1770442108067,0.9441567,2093.1,2091.4,0.96900041]
[1770442108356,0.05026328,2092.9,2092.0,1.19501759]
[1770442108567,0.99441998,2092.8,2092.0,1.19499346]
[1770442108853,0.05026328,2092.7,2091.5,0.96900041]
[1770442109059,0.05026328,2092.7,2091.7,4.78063841]
[1770442109229,1.2448973,2092.7,2091.7,1.19520007]
[1770442109423,1.24489392,2092.7,2091.7,1.19520007]
[1770442109646,4.77784325,2093.0,2091.7,1.19520007]
[1770442109841,1.19447808,2093.0,2091.7,1.19520007]
[1770442110050,2.18861793,2093.5,2092.1,3.82414741]
[1770442110253,1.24446123,2093.5,2092.1,0.96900041]
[1770442110425,0.05026328,2093.8,2092.5,0.96900041]
[1770442110626,2.13804399,2094.0,2092.5,0.96900041]
[1770442110861,0.05026328,2093.8,2092.5,0.96900041]
[1770442111180,0.05026328,2093.8,2092.7,1.19462894]
[1770442111181,1.24426641,2093.8,2092.7,1.19462894]
[1770442111665,2.18842311,2093.8,2092.6,1.19465235]
[1770442111849,2.18842708,2093.8,2092.6,1.19465235]
[1770442112028,0.05026328,2093.9,2092.6,1.19465235]
[1770442112233,0.05026328,2094.1,2092.8,0.90470904]
[1770442112674,0.05026328,2094.0,2092.8,0.90470904]
[1770442112842,0.05026328,2094.0,2092.8,0.80230904]
[1770442113044,0.05026328,2094.4,2092.9,5.14107703]
[1770442113373,0.65207478,2094.4,2093.1,2.568808]
[1770442113660,0.6018115,2094.4,2093.1,0.80230903]
[1770442113864,0.05026328,2094.5,2093.1,0.80230903]
[1770442114029,0.05026328,2094.6,2093.2,8.23122403]
[1770442114229,1.19340812,2094.9,2093.3,0.80230903]
[1770442114660,0.002,2093.6,2093.3,0.80230903]
[1770442114868,1.19308962,2095.4,2093.8,0.90470902]
[1770442115032,0.9441567,2095.5,2093.9,1.19394431]
[1770442115033,1.19320351,2095.2,2093.9,1.19394431]
[1770442115236,1.19320351,2095.2,2094.0,0.68744306]
[1770442115437,0.05026328,2094.7,2093.8,1.19399388]
[1770442115660,0.99441998,2095.0,2093.8,1.19399388]
[1770442115661,0.05026328,2094.9,2093.8,1.19399388]
[1770442116262,0.9441567,2095.0,2093.8,1.19399388]
[1770442116650,1.03523046,2094.9,2093.8,1.19398074]
[1770442117168,4.82307733,2095.3,2093.8,0.80230901]
[1770442117169,2.22841683,2095.3,2093.8,0.80230901]
[1770442117378,2.22841683,2095.3,2093.9,0.55783144]
[1770442117596,2.22841683,2095.3,2092.7,0.80230901]
[1770442117597,0.05026328,2094.1,2092.7,0.80230901]
[1770442117739,0.05026328,2094.1,2092.2,0.001]
[1770442117740,1.03523046,2093.5,2092.4,1.19476586]
[1770442117945,1.03523046,2093.5,2092.2,0.001]
[1770442117946,0.05026328,2092.9,2092.2,0.001]
[1770442118260,0.05026328,2092.8,2092.2,0.001]
[1770442118463,0.05026328,2093.1,2092.2,0.001]
[1770442118464,0.05026328,2092.7,2092.2,0.001]
[1770442118848,0.05026328,2092.4,2092.2,0.001]
[1770442119049,1.19462894,2092.7,2092.2,0.001]
[1770442119249,1.19449056,2093.0,2092.2,0.001]
[1770442119453,2.17925371,2093.3,2092.2,0.001]
[1770442119750,1.03523046,2093.2,2092.2,0.001]
[1770442120075,0.05026328,2092.5,2092.2,0.001]
[1770442120247,0.05026328,2092.5,2091.5,1.19531015]
[1770442120444,0.05026328,2092.1,2090.5,0.802309]
[1770442120769,0.98496718,2092.1,2091.3,1.19542069]
[1770442120972,0.05026328,2092.0,2091.2,1.19546074]
[1770442121190,0.98496718,2092.7,2090.8,0.1024]
[1770442121373,1.26880076,2092.5,2090.9,5.381505]
[1770442121545,1.26880076,2092.5,2090.8,0.60812377]
[1770442121546,0.98496718,2092.4,2090.8,0.60812377]
[1770442121750,0.98496718,2092.4,2090.9,2.543738]
[1770442122058,0.98496718,2092.2,2090.8,0.60812377]
[1770442122462,0.98496718,2092.2,2090.6,1.19582894]
[1770442122764,0.98496718,2092.2,2090.7,2.598001]
[1770442123080,0.2335703,2092.5,2090.7,0.90470899]
[1770442123276,0.05026328,2092.3,2090.9,2.552208]
[1770442124158,1.19480022,2092.4,2090.9,2.552208]
[1770442124350,0.69589683,2092.3,2091.0,0.37479225]
[1770442124551,0.69589683,2092.3,2090.9,5.678855]
[1770442124957,0.69589683,2092.3,2091.0,4.044425]
[1770442125158,1.19480022,2092.4,2091.1,1.19554301]
[1770442125357,0.98496718,2093.3,2091.3,0.80230898]
[1770442125557,0.05026328,2093.5,2092.0,0.80230898]
[1770442125781,0.05026328,2093.6,2092.0,0.80230898]
[1770442125983,1.03523046,2093.6,2092.0,0.80230898]
[1770442126200,0.05026328,2093.5,2092.1,1.19911386]
[1770442126487,0.98496718,2093.6,2092.1,1.19911386]
[1770442126868,0.05026328,2093.5,2092.1,1.19911386]
[1770442127268,1.1,2093.3,2092.2,1.19491444]
[1770442127784,0.05026328,2093.2,2092.1,2.39405823]
[1770442127983,1.1,2093.3,2092.1,1.19494437]
[1770442128187,2.29429105,2093.3,2092.1,1.19494437]
[1770442128367,1.1,2093.3,2092.1,1.19494437]
[1770442129090,1.1,2093.3,2092.2,3.59998]
[1770442129259,2.29428842,2093.3,2092.0,4.77988623]
[1770442129460,2.29428842,2093.3,2092.1,0.67772239]
[1770442129659,0.05026328,2093.2,2092.1,0.67772239]
[1770442130463,1.03523046,2092.9,2091.3,5.389672]
[1770442130677,0.98496718,2092.9,2091.9,1.19508242]
[1770442131198,0.05026328,2093.2,2091.8,1.19511336]
[1770442131199,1.03523046,2092.8,2091.8,1.19511336]
[1770442131380,1.19462894,2092.7,2091.4,4.78132039]
[1770442131563,1.19462894,2092.7,2091.5,0.59767491]
[1770442131564,1.8954358,2092.7,2091.5,0.59767491]
[1770442131760,1.8954358,2092.7,2091.6,2.8145]
[1770442131988,1.8954358,2092.7,2091.5,0.59767491]
[1770442132576,2.88040298,2092.7,2091.5,0.59767491]
[1770442132770,2.88040298,2092.7,2091.4,3.497623]
[1770442132977,2.88040298,2092.7,2091.4,3.557583]
[1770442133178,2.88040298,2092.7,2091.3,1.19542868]
[1770442133704,0.05026328,2092.6,2091.3,1.19542868]
[1770442133891,1.03523046,2092.6,2091.3,1.19542868]
[1770442134067,0.29306663,2092.5,2091.3,2.351686]
[1770442134266,1.8954358,2092.7,2091.4,3.663239]
[1770442134468,2.88040298,2092.7,2091.3,2.351686]
[1770442134676,1.03523046,2092.6,2091.3,2.351686]
[1770442135396,1.03523046,2092.6,2091.3,1.15625732]
[1770442135397,0.98496718,2092.4,2091.3,1.15625732]
[1770442135601,0.98496718,2092.2,2091.3,1.15625732]
[1770442135894,0.98496718,2092.2,2091.3,1.19542119]
[1770442136503,0.98496718,2092.2,2091.2,1.19645653]
[1770442136700,0.98496718,2092.2,2091.2,0.001]
[1770442136870,0.98496718,2092.2,2091.2,1.19648367]
[1770442137070,0.98496718,2092.2,2091.2,1.79435479]
[1770442137472,1.19485733,2092.3,2091.4,1.19537152]
[1770442137690,0.98496718,2092.4,2091.3,4.78156643]
[1770442138007,1.194713,2092.6,2091.3,4.78156643]
[1770442138168,1.19462894,2092.7,2091.3,4.78156643]
[1770442138368,2.37331221,2092.7,2091.4,0.65758662]
[1770442139098,2.37331221,2092.7,2091.5,4.245505]
[1770442139271,2.37331221,2092.7,2091.4,0.65758662]
[1770442139801,5.76342467,2092.8,2091.4,0.65758662]
[1770442139802,2.17954207,2092.8,2091.6,3.623955]
[1770442139970,1.19454857,2092.9,2091.7,3.784055]
[1770442140168,4.77760812,2093.1,2091.7,3.784055]
[1770442140402,1.19440064,2093.1,2091.7,0.80230894]
[1770442140583,1.19438623,2093.2,2091.8,3.47979594]
[1770442140779,0.59715669,2093.1,2092.0,2.31948]
[1770442141101,0.59715669,2093.1,2091.9,0.34797959]
[1770442141297,2.17929393,2093.3,2091.9,2.95598]
[1770442141595,2.17929393,2093.3,2091.9,3.75828894]
[1770442141596,0.98496718,2093.3,2091.9,3.75828894]
[1770442141810,2.17906125,2093.7,2092.3,3.497085]
[1770442141969,2.17906125,2093.7,2092.3,5.911309]
[1770442142171,0.98496718,2093.7,2092.4,4.54492]
[1770442142403,2.22929522,2093.7,2092.5,0.53472289]
[1770442142569,0.002,2092.7,2092.3,2.499067]
[1770442142765,0.98496718,2093.6,2092.2,1.19491444]
[1770442142972,1.19397892,2093.9,2092.3,0.80230894]
[1770442143266,1.19397892,2093.9,2092.4,5.744604]
[1770442143599,2.17885833,2094.0,2092.5,0.80230893]
[1770442143906,2.17885833,2094.0,2091.9,7.16405543]
[1770442143907,1.1943593,2093.2,2091.9,0.80230893]
[1770442144068,1.03523046,2093.8,2092.3,4.689864]
[1770442144272,1.03523046,2093.5,2091.8,0.80230893]
[1770442144467,1.03523046,2093.5,2091.9,3.53657493]
[1770442144710,1.03523046,2093.5,2092.1,2.644116]
[1770442145202,1.03523046,2093.5,2091.7,1.29860007]
[1770442145203,0.98496718,2091.9,2091.7,0.1034]
[1770442145404,0.095363,2092.1,2091.7,0.001]
[1770442145606,0.05026328,2092.4,2091.7,0.001]
[1770442145902,0.095363,2092.1,2091.7,0.001]
[1770442146581,0.60697472,2092.1,2091.7,0.001]
[1770442146968,0.98496718,2092.5,2091.7,0.001]
[1770442147303,2.17971835,2092.5,2091.7,0.001]
[1770442147478,2.17971835,2092.5,2089.7,4.78516165]
[1770442147479,0.94302298,2091.3,2089.7,4.78516165]
[1770442147681,0.94302298,2090.7,2089.8,0.001]
[1770442147877,0.94302298,2090.2,2088.9,3.268272]
[1770442148089,0.94302298,2090.2,2089.0,0.44751314]
[1770442148479,0.94302298,2089.8,2089.0,0.001]
[1770442148743,0.97967044,2089.6,2088.7,0.1309746]
[1770442149008,1.21324074,2089.3,2087.3,11.19440455]
[1770442149176,0.97967044,2089.0,2087.6,4.79009684]
[1770442149373,0.97967044,2089.8,2088.3,1.19710357]
[1770442149570,0.97967044,2089.6,2088.0,2.417918]
[1770442149768,2.17612691,2089.6,2088.2,4.7886024]
[1770442150171,0.97967044,2089.5,2088.2,1.19720333]
[1770442150377,2.17588711,2090.0,2088.5,5.270585]
[1770442150680,0.97967044,2089.9,2088.4,2.742249]
[1770442150881,0.05026328,2090.3,2088.6,3.806529]
[1770442150882,1.19609212,2090.2,2088.6,3.806529]
[1770442151076,0.97967044,2090.3,2088.9,6.976542]
[1770442151278,0.24724733,2090.4,2089.1,2.497]
[1770442151484,0.24724733,2090.4,2089.3,4.87505]
[1770442151693,0.24724733,2090.4,2089.4,0.001]
[1770442151893,0.24724733,2090.4,2089.3,8.12251]
[1770442152109,0.24724733,2090.4,2089.5,3.18194]
[1770442152281,0.24724733,2090.4,2089.4,0.93291403]
[1770442152483,0.15947816,2090.4,2089.4,0.001]
[1770442152686,0.97967044,2091.3,2089.8,0.1024]
[1770442152883,0.97967044,2091.3,2089.2,1.19663028]
[1770442152884,0.97967044,2090.7,2089.3,0.001]
[1770442153083,0.97967044,2090.5,2089.3,0.001]
[1770442153414,1.02993372,2090.1,2089.3,0.001]
[1770442153592,0.97967044,2090.1,2089.3,0.001]
[1770442153795,0.05026328,2089.7,2088.7,0.3908929]
[1770442153993,0.97967044,2089.6,2088.7,0.3918929]
[1770442154314,0.97967044,2089.6,2088.1,0.2417918]
[1770442154315,0.97967044,2089.1,2088.1,0.2417918]
[1770442154615,0.97967044,2089.1,2088.3,1.19714468]
[1770442154800,0.97967044,2089.6,2088.4,4.78816707]
[1770442155000,0.97967044,2089.6,2088.6,1.19696989]
[1770442155204,0.97967044,2089.6,2088.5,1.19699225]
[1770442155407,0.97967044,2089.6,2088.6,1.19696757]
[1770442155615,0.97967044,2089.6,2088.6,0.59853122]
[1770442155821,0.97967044,2089.6,2089.3,0.001]
[1770442156019,2.17609229,2089.6,2088.3,3.19315]
[1770442156312,2.17578545,2090.1,2089.0,0.001]
[1770442156515,0.97967044,2090.1,2089.0,0.001]
[1770442157422,1.1960821,2090.2,2088.2,4.94236186]
[1770442157423,0.97967044,2088.6,2088.2,0.001]
[1770442157724,0.087769,2088.4,2087.6,1.19750229]
[1770442157886,0.087769,2089.0,2087.3,16.14634]
[1770442158091,0.087769,2087.8,2087.0,1.19788254]
[1770442158289,0.087769,2088.1,2086.8,0.24716656]
[1770442158493,0.97967044,2088.3,2087.0,1.19788719]
[1770442158718,1.06743944,2088.3,2087.0,1.19788719]
[1770442158997,0.087769,2087.4,2087.0,1.19788719]
[1770442159197,0.087769,2087.4,2085.7,0.05026328]
[1770442159198,0.087769,2087.5,2086.8,1.19795894]
[1770442159416,0.087769,2087.5,2086.9,1.19791951]
[1770442159689,0.087769,2087.5,2086.0,0.05026328]
[1770442159690,0.087769,2087.5,2086.6,1.19810488]
[1770442159886,0.97967044,2087.9,2086.2,4.794692]
[1770442159887,0.087769,2087.3,2086.2,4.794692]
[1770442160188,0.97967044,2087.9,2086.4,6.67142]
[1770442160189,0.087769,2087.9,2086.4,6.67142]
[1770442160409,1.06743944,2088.0,2086.6,9.500923]
[1770442160586,0.97967044,2088.4,2086.6,9.500923]
[1770442160790,0.087769,2087.8,2086.6,3.25027]
[1770442160996,0.087769,2087.8,2086.5,0.667142]
[1770442161208,0.087769,2087.8,2086.2,0.80230889]
[1770442161209,0.087769,2087.6,2086.2,6.878242]
[1770442161793,0.087769,2087.4,2086.2,6.878242]
[1770442161989,0.97967044,2088.3,2086.7,0.05026328]
[1770442162187,0.62142731,2089.0,2087.3,0.05026328]
[1770442162386,0.97967044,2089.3,2086.9,5.065085]
[1770442162387,0.97967044,2088.6,2086.9,5.065085]
[1770442162620,0.05026328,2088.3,2087.0,0.5065085]
[1770442162818,1.02993372,2088.6,2086.6,18.58600189]
[1770442163013,0.97967044,2088.6,2086.9,10.706781]
[1770442163211,0.087769,2088.4,2086.9,10.706781]
[1770442163524,0.087769,2088.4,2087.0,0.1024]
[1770442163709,0.05026328,2088.7,2087.2,0.1024]
[1770442163890,0.35184987,2088.8,2087.5,1.19760479]
[1770442164091,0.35184987,2088.8,2087.6,3.260252]
[1770442164403,0.97967044,2089.6,2088.1,2.307735]
[1770442164616,1.19621525,2090.0,2088.1,2.307735]
[1770442164814,0.97967044,2090.1,2088.1,2.307735]
[1770442165126,1.02993372,2090.1,2088.2,16.260992]
[1770442165426,0.97967044,2089.7,2088.3,1.70633009]
[1770442165624,0.05026328,2089.5,2087.8,0.1024]
[1770442165796,0.97967044,2089.7,2088.1,4.50623]
[1770442165998,0.97967044,2089.7,2088.5,3.916104]
[1770442166200,1.5388341,2090.4,2088.5,3.916104]
[1770442166419,0.34287915,2090.4,2088.6,1.06620059]
[1770442166726,0.34287915,2090.4,2088.9,12.730874]
[1770442167020,0.34287915,2090.4,2089.0,11.993743]
[1770442167519,0.34287915,2090.4,2089.0,10.282295]
[1770442167721,0.34287915,2090.4,2089.0,9.127082]
[1770442167921,0.34287915,2090.4,2088.9,1.19680214]
[1770442167922,0.05026328,2090.1,2088.9,1.19680214]
[1770442168124,0.05026328,2090.1,2089.0,1.64783877]
[1770442168328,0.05026328,2090.1,2088.9,1.19680214]
[1770442168500,0.05026328,2089.8,2088.9,1.19680214]
[1770442168701,0.05026328,2090.3,2088.9,1.19680214]
[1770442168925,0.002,2089.9,2088.9,1.19680214]
[1770442170516,0.002,2089.9,2088.8,4.78720857]
[1770442170731,0.002,2089.9,2088.9,0.76068016]
[1770442172132,0.002,2089.9,2089.0,3.265577]
[1770442172428,0.002,2089.9,2089.0,3.45151]
[1770442172627,0.002,2089.9,2089.1,1.19668756]
[1770442172830,0.002,2089.9,2089.2,3.02802]
[1770442173135,0.002,2089.9,2089.3,0.42247076]
[1770442173317,0.05026328,2089.8,2089.0,1.19670718]
[1770442173500,0.002,2089.9,2089.0,1.19670718]
[1770442174336,0.002,2089.9,2089.1,8.344717]
[1770442174538,0.002,2089.9,2089.3,3.881426]
[1770442174710,0.002,2089.9,2089.4,0.50780563]
[1770442174909,0.002,2089.9,2089.3,3.078996]
[1770442175110,0.002,2089.9,2089.2,1.19663028]
[1770442176430,0.002,2089.9,2089.1,4.78652115]
[1770442177840,0.002,2089.9,2089.2,3.50557]
[1770442178025,0.002,2089.9,2089.2,2.93857]
[1770442178219,0.002,2089.9,2089.3,0.77250911]
[1770442178420,0.002,2089.9,2089.0,4.78652115]
[1770442181019,0.002,2089.9,2089.1,3.549191]
[1770442181261,0.002,2089.9,2089.0,4.78652115]
[1770442181658,0.002,2089.9,2089.1,3.292855]
[1770442181960,0.39314243,2090.4,2089.0,4.78652115]
[1770442182132,0.39314243,2090.4,2089.3,0.001]
[1770442182332,0.002,2089.7,2089.3,0.001]
[1770442184141,0.002,2089.7,2088.4,5.037]
[1770442184142,0.98803395,2089.4,2088.4,5.037]
[1770442184337,0.98803395,2089.4,2087.2,1.50933119]
[1770442184338,0.98803395,2089.1,2087.6,4.79015846]
[1770442184650,0.05026328,2089.4,2087.7,1.19747221]
[1770442184651,0.05026328,2088.6,2087.7,1.19747221]
[1770442184849,0.98803395,2088.9,2087.7,1.19747221]
[1770442185067,0.93777067,2088.7,2087.7,1.19747221]
[1770442185271,1.19697404,2088.6,2086.9,4.79164581]
[1770442185439,1.19697404,2088.6,2087.1,3.47442]
[1770442185760,1.19674485,2089.0,2087.1,4.41439254]
[1770442185962,1.19674485,2089.0,2087.2,0.92316054]
[1770442186150,2.13449943,2089.1,2087.2,0.92316054]
[1770442186352,0.05026328,2089.0,2087.3,4.50994]
[1770442186652,0.74739823,2089.0,2087.5,2.597436]
[1770442186965,1.6851689,2089.0,2087.4,0.54331005]
[1770442187137,1.6851689,2089.0,2087.3,7.066636]
[1770442187338,2.8819701,2089.0,2087.5,3.523486]
[1770442187863,1.6851689,2089.0,2087.5,3.523486]
[1770442188063,1.63490562,2089.0,2087.5,3.523486]
[1770442188438,1.19666202,2089.2,2087.5,3.523486]
[1770442189260,2.13443269,2089.2,2087.5,3.523486]
[1770442189739,2.13443269,2089.2,2087.7,2.746596]
[1770442189740,0.93777067,2089.2,2087.7,2.746596]
[1770442189945,0.98803395,2089.2,2087.7,3.238442]
[1770442190194,0.05026328,2088.9,2087.6,1.19754742]
[1770442190345,0.93777067,2089.1,2087.6,1.19754742]
[1770442190346,0.93777067,2089.1,2087.7,0.59877371]
[1770442190677,0.98803395,2088.9,2087.6,1.19754742]
[1770442191243,0.05026328,2088.8,2087.6,1.19754742]
[1770442191679,0.98803395,2088.8,2087.6,1.19754742]
[1770442191848,1.24718002,2088.7,2087.3,6.626835]
[1770442192049,2.13466002,2088.8,2087.3,6.1164]
[1770442192267,1.19688935,2088.8,2087.5,2.57805]
[1770442192467,1.19688935,2088.8,2087.4,1.09065897]
[1770442192468,0.98803395,2088.7,2087.4,1.09065897]
[1770442192770,0.98803395,2088.7,2087.2,4.79018969]
[1770442192969,0.05026328,2088.4,2087.2,4.79018969]
[1770442193543,0.05026328,2088.4,2087.3,3.568398]
[1770442193868,0.05026328,2088.4,2087.2,4.79018969]
[1770442194075,0.98803395,2088.7,2087.4,2.089808]
[1770442194275,0.93777067,2088.7,2087.4,2.089808]
[1770442194652,2.13449975,2089.1,2087.4,2.089808]
[1770442195048,0.93777067,2089.0,2087.4,2.089808]
[1770442195247,0.93777067,2089.0,2087.5,3.721975]
[1770442195465,0.93777067,2089.0,2087.6,0.3722975]
[1770442195671,0.002,2088.5,2087.5,3.721975]
[1770442195875,0.002,2088.5,2087.6,1.19754742]
[1770442197949,0.002,2088.5,2087.8,1.1974327]
[1770442198853,0.002,2088.5,2087.9,3.474036]
[1770442199165,0.002,2088.5,2087.9,3.087436]
[1770442199474,0.002,2088.5,2088.0,0.42848687]
[1770442199682,0.002,2088.5,2087.8,1.1974327]
[1770442199683,0.002,2088.5,2087.8,2.12059324]
[1770442199981,0.002,2088.5,2088.0,1.197318]
[1770442200477,0.002,2088.7,2088.1,3.49678]
[1770442200651,0.002,2089.7,2088.3,10.672673]
[1770442200855,0.002,2089.7,2088.4,2.449365]
[1770442201082,0.002,2089.7,2088.0,1.197318]
[1770442201083,0.93777067,2089.6,2088.5,0.33725255]
[1770442201379,0.93777067,2089.3,2088.0,1.197318]
[1770442201688,0.93977067,2089.7,2088.0,2.12047854]
[1770442201847,0.002,2089.7,2088.6,0.92316054]
[1770442202051,0.002,2089.7,2088.8,1.19685944]
[1770442202277,0.002,2089.7,2088.9,0.59842972]
[1770442202773,0.002,2089.7,2089.0,2.634733]
[1770442203473,0.002,2089.7,2088.9,0.59842972]
[1770442203781,0.002,2089.7,2089.0,2.37537]
[1770442203980,0.002,2089.7,2089.0,5.152665]
[1770442204281,0.002,2089.7,2089.2,3.31343]
[1770442204450,0.93777067,2090.4,2089.1,1.77179703]
[1770442204764,0.98803395,2089.9,2089.0,1.19671186]
[1770442205278,0.98803395,2090.2,2089.0,1.19671186]
[1770442205481,0.93777067,2090.2,2089.0,1.19671186]
[1770442205659,0.93777067,2090.6,2089.0,2.1198724]
[1770442205859,2.18386485,2090.6,2089.1,0.69068518]
[1770442206180,0.93777067,2090.6,2089.2,1.19663028]
[1770442206479,0.05026328,2090.5,2089.2,1.19663028]
[1770442207280,0.05026328,2090.2,2089.2,1.19663028]
[1770442207488,0.05026328,2089.9,2089.2,1.19663028]
[1770442207782,1.01059167,2090.2,2089.2,1.86405108]
[1770442208158,0.96032839,2090.6,2089.2,1.86405108]
[1770442208485,2.15619802,2090.6,2089.2,1.86405108]
[1770442208854,2.15619802,2090.6,2087.4,0.99563594]
[1770442208855,0.05026328,2089.4,2087.4,0.99563594]
[1770442209185,0.05026328,2089.6,2088.8,1.19682692]
[1770442209482,0.05026328,2089.6,2088.7,1.19687527]
[1770442209683,0.05026328,2089.6,2088.5,1.19701009]
[1770442209983,0.05026328,2089.5,2088.7,1.19688072]
[1770442210294,1.19651574,2089.4,2088.6,1.19693576]
[1770442210654,1.24677902,2089.4,2088.5,0.69801714]
[1770442210878,1.24677902,2089.4,2088.3,5.78321308]
[1770442211090,1.24677902,2089.4,2088.5,1.19701359]
[1770442211457,0.05026328,2089.3,2088.4,1.1970655]
[1770442211662,0.05026328,2089.3,2088.2,1.19716423]
[1770442211866,0.05026328,2089.0,2088.2,1.19716423]
[1770442212181,0.05026328,2089.3,2088.4,1.19707962]
[1770442212383,1.24700842,2089.0,2088.3,1.19711487]
[1770442212605,1.19672668,2089.1,2088.3,1.19711487]
[1770442212888,1.19672668,2089.1,2088.2,1.79583645]
[1770442213097,0.05026328,2088.3,2087.3,0.59879666]
[1770442213389,0.05026328,2088.3,2087.1,1.19880591]
[1770442213554,0.05026328,2088.3,2087.4,1.19865779]
[1770442213750,0.05026328,2088.2,2087.4,1.19865779]
[1770442213977,0.05026328,2088.2,2087.4,1.19865962]
[1770442214152,0.33924102,2088.7,2087.4,1.19865962]
[1770442214364,1.197146,2088.3,2087.4,1.7976035]
[1770442214564,1.197146,2088.3,2087.4,0.001]
[1770442214762,1.197146,2088.3,2087.4,1.19863246]
[1770442214973,1.197146,2088.3,2087.4,0.001]
[1770442215178,1.197146,2088.3,2087.1,0.001]
[1770442215380,1.197146,2088.3,2087.4,1.19765448]
[1770442215571,0.60359447,2088.2,2087.4,1.19765448]
[1770442215882,0.60359447,2088.2,2087.1,0.99563594]
[1770442216088,0.05026328,2088.1,2087.3,1.19770092]
[1770442216387,1.197318,2088.0,2087.1,0.001]